fUSD/lending_fUSD_20251115
["ID","MTS","AMOUNT","RATE_DAILY","PERIOD"]
[394051017,1763231432736,-821.0,0.00017897,2]
[394051018,1763231432747,-1598.0,0.00017897,2]
[394051019,1763231432758,-1275.0,0.00017897,2]
[394051020,1763231432768,-793.0,0.00017897,2]
[394051021,1763231432778,-1190.0,0.00017897,2]
[394051022,1763231432787,-907.0,0.00017897,2]
[394051023,1763231432797,-3430.0,0.00017897,2]
[394051024,1763231432808,-608.0,0.00017897,2]
[394051025,1763231432818,-679.92,0.00017897,2]
[394051026,1763231432839,-160000.16,0.000179,2]
[394051027,1763231432851,-1000.0,0.000179,2]
[394051028,1763231432862,-173.59906655,0.000179,2]
[394051029,1763231432873,-15749.35150393,0.00017984,2]
[394051030,1763231432883,-504.0,0.00017985,2]
[394051031,1763231432895,-500.0,0.00017999,2]
[394051032,1763231432905,-500.0,0.00017999,2]
[394051033,1763231432916,-507.50726473,0.00017999,2]
[394051034,1763231432926,-500.0,0.00017999,2]
[394051035,1763231432937,-500.0,0.00017999,2]
[394051036,1763231432948,-533.55461923,0.00017999,2]
[394051037,1763231432959,-500.0,0.00017999,2]
[394051038,1763231432969,-44132.50563495,0.00018,2]
[394051039,1763231432985,-31302.79562593,0.00018,2]
[394051040,1763231432997,-19336.49729807,0.00018,2]
[394051041,1763231433010,-22394.36615154,0.00018,2]
[394051042,1763231433023,-987.4479749,0.00018,2]
[394051043,1763231433036,-1427.00894998,0.00018,2]
[394051044,1763231433048,-2099.14114819,0.00018,2]
[394051045,1763231433065,-298.00000008,0.00018,2]
[394051046,1763231433077,-664.64587,0.00018,2]
[394051047,1763231433095,-6519.59829753,0.00018,2]
[394051048,1763231433107,-8762.64160223,0.00018,2]
[394051049,1763231435156,500.0,0.00041435,120]
[394051050,1763231435386,500.0,0.00041435,120]
[394051051,1763231435618,500.0,0.00041435,120]
[394051052,1763231435666,500.0,0.00041435,120]
[394051053,1763231435878,457.27577737,0.00041435,120]
[394051054,1763231436134,500.0,0.00041435,120]
[394051055,1763231436205,500.0,0.00041435,120]
[394051056,1763231436373,500.0,0.00041435,120]
[394051057,1763231436610,500.0,0.00041435,120]
[394051058,1763231436850,500.0,0.00041435,120]
[394051059,1763231437132,500.0,0.00041435,120]
[394051060,1763231437291,500.0,0.00041435,120]
[394051061,1763231437408,500.0,0.00041435,120]
[394051067,1763231437531,500.0,0.00041435,120]
[394051068,1763231437579,-156.93973077,0.000169,2]
[394051069,1763231437588,-387061.51706935,0.00018,2]
[394051070,1763231437679,500.0,0.00041435,120]
[394051071,1763231437749,-4983.05,0.00018,2]
[394051073,1763231437760,-200079.99999999,0.00018,2]
[394051075,1763231437806,500.0,0.00041435,120]
[394051088,1763231437949,500.0,0.00041435,120]
[394051089,1763231438035,500.0,0.00041435,120]
[394051090,1763231438222,525.67702655,0.00041435,120]
[394051091,1763231438277,500.0,0.00041435,120]
[394051092,1763231438515,383.95724485,0.00041435,120]
[394051093,1763231439033,407.78036505,0.00041435,120]
[394051097,1763231439820,-575.0,0.00017897,2]
[394051098,1763231439830,-387.96,0.00018,2]
[394051099,1763231439842,-285.8699999,0.00018,2]
[394051100,1763231439855,-1624.99999997,0.00018,2]
[394051101,1763231439878,-613.09008184,0.00018,2]
[394051103,1763231442023,387.97631576,0.00041435,120]
[394051120,1763231442915,-1127.93495063,0.00018,2]
[394051121,1763231442927,-4317.85726662,0.00018,2]
[394051122,1763231442939,-862.25351101,0.00018,2]
[394051123,1763231442951,-1155.26977686,0.00018,2]
[394051124,1763231442962,-245906.52871674,0.00018,2]
[394051125,1763231442982,-3266.20697937,0.00018,2]
[394051126,1763231442994,-20052.59034099,0.00018,2]
[394051127,1763231443037,-1198.13184821,0.00018,2]
[394051128,1763231443048,-565.24400008,0.00018,2]
[394051129,1763231443200,-10890.92541855,0.00018,2]
[394051133,1763231445075,500.0,0.00041435,120]
[394051135,1763231445416,500.0,0.00041435,120]
[394051139,1763231445687,500.0,0.00041435,120]
[394051140,1763231445749,-175.8984892,0.000179,2]
[394051141,1763231445760,-145.66401074,0.00018,2]
[394051142,1763231445957,500.0,0.00041435,120]
[394051147,1763231446081,-348.425,0.00018,2]
[394051166,1763231446256,500.0,0.00041435,120]
[394051198,1763231446497,500.0,0.00041435,120]
[394051224,1763231446733,500.0,0.00041435,120]
[394051249,1763231446966,530.28799584,0.00041435,120]
[394051537,1763231451354,500.0,0.00041435,120]
[394051538,1763231451548,500.0,0.00041435,120]
[394051539,1763231451774,500.0,0.00041435,120]
[394051540,1763231451820,500.0,0.00041435,120]
[394051541,1763231452021,500.0,0.00041435,120]
[394051542,1763231452066,645.38127641,0.00041435,120]
[394051543,1763231452303,214.77766536,0.00041435,120]
[394051544,1763231455157,362.44249151,0.00041435,120]
[394051545,1763231455301,500.0,0.00041435,120]
[394051546,1763231455416,833.36,0.00041435,120]
[394051547,1763231455555,500.0,0.00041435,120]
[394051548,1763231455651,833.36,0.00041435,120]
[394051549,1763231455798,500.0,0.00041435,120]
[394051550,1763231455889,833.36,0.00041435,120]
[394051551,1763231456033,500.0,0.00041435,120]
[394051552,1763231456159,833.36,0.00041435,120]
[394051553,1763231456276,388.12299105,0.00041435,120]
[394051554,1763231456393,833.36,0.00041435,120]
[394051555,1763231456752,833.36,0.00041435,120]
[394051556,1763231456858,401.08115969,0.00041435,120]
[394051557,1763231456994,500.0,0.00041435,120]
[394051558,1763231457084,833.36,0.00041435,120]
[394051559,1763231457249,500.0,0.00041435,120]
[394051560,1763231457321,833.36,0.00041435,120]
[394051561,1763231457488,421.20619543,0.00041435,120]
[394051562,1763231457579,833.36,0.00041435,120]
[394051563,1763231457811,833.36,0.00041435,120]
[394051564,1763231458058,833.36,0.00041435,120]
[394051565,1763231458315,833.36,0.00041435,120]
[394051566,1763231458550,833.36,0.00041435,120]
[394051567,1763231458787,833.36,0.00041435,120]
[394051568,1763231458831,400.0,0.00041435,120]
[394051569,1763231459044,833.36,0.00041435,120]
[394051570,1763231459274,833.36,0.00041435,120]
[394051571,1763231459508,833.36,0.00041435,120]
[394051572,1763231459580,500.0,0.00041435,120]
[394051573,1763231459742,833.36,0.00041435,120]
[394051574,1763231459813,641.52765171,0.00041435,120]
[394051575,1763231459982,833.36,0.00041435,120]
[394051576,1763231460222,833.36,0.00041435,120]
[394051577,1763231460497,833.36,0.00041435,120]
[394051578,1763231460720,833.36,0.00041435,120]
[394051579,1763231460824,500.0,0.00041435,120]
[394051580,1763231460968,833.36,0.00041435,120]
[394051581,1763231461071,500.0,0.00041435,120]
[394051582,1763231461201,833.54459674,0.00041435,120]
[394051583,1763231461370,262.27593328,0.00041435,120]
[394051584,1763231461566,200.0,0.00041435,30]
[394051585,1763231464623,500.0,0.00041435,120]
[394051586,1763231464895,500.0,0.00041435,120]
[394051587,1763231464991,500.0,0.00041435,120]
[394051588,1763231465424,500.0,0.00041435,120]
[394051589,1763231465475,500.0,0.00041435,120]
[394051590,1763231465586,500.0,0.00041435,120]
[394051591,1763231465632,551.24460149,0.00041435,120]
[394051592,1763231465754,373.23542776,0.00041435,120]
[394051593,1763231469781,500.0,0.00041435,120]
[394051594,1763231470051,500.0,0.00041435,120]
[394051595,1763231470298,232.60897617,0.00041435,120]
[394051596,1763231470561,500.0,0.00041435,120]
[394051597,1763231471079,500.0,0.00041435,120]
[394051598,1763231471149,500.0,0.00041435,120]
[394051599,1763231471327,500.0,0.00041435,120]
[394051600,1763231471575,500.0,0.00041435,120]
[394051601,1763231471842,274.23016985,0.00041435,120]
[394051602,1763231472406,500.0,0.00041435,120]
[394051603,1763231472644,500.0,0.00041435,120]
[394051604,1763231472876,500.0,0.00041435,120]
[394051605,1763231473139,500.0,0.00041435,120]
[394051606,1763231473442,311.95372465,0.00041435,120]
[394051607,1763231477370,500.0,0.00041435,120]
[394051608,1763231477621,500.0,0.00041435,120]
[394051609,1763231477888,500.0,0.00041435,120]
[394051610,1763231477931,500.0,0.00041435,120]
[394051611,1763231478143,306.82734458,0.00041435,120]
[394051612,1763231478192,500.0,0.00041435,120]
[394051613,1763231478420,500.0,0.00041435,120]
[394051614,1763231478656,500.0,0.00041435,120]
[394051615,1763231478910,500.0,0.00041435,120]
[394051616,1763231479167,500.0,0.00041435,120]
[394051617,1763231479418,522.12889792,0.00041435,120]
[394051618,1763231479738,437.08942919,0.00041435,120]
[394051619,1763231481515,500.0,0.00041435,120]
[394051620,1763231481768,312.57696307,0.00041435,120]
[394051621,1763231482060,500.0,0.00041435,120]
[394051622,1763231482187,500.0,0.00041435,120]
[394051623,1763231482302,617.99053026,0.00041435,120]
[394051624,1763231482442,500.0,0.00041435,120]
[394051625,1763231482727,500.0,0.00041435,120]
[394051626,1763231482992,304.30676625,0.00041435,120]
[394051627,1763231483726,500.0,0.00041435,120]
[394051628,1763231483970,507.97390048,0.00041435,120]
[394051629,1763231484967,500.0,0.00041435,120]
[394051630,1763231485209,500.0,0.00041435,120]
[394051631,1763231485443,500.0,0.00041435,120]
[394051632,1763231485679,500.0,0.00041435,120]
[394051633,1763231485967,500.0,0.00041435,120]
[394051634,1763231486190,500.0,0.00041435,120]
[394051635,1763231486429,500.0,0.00041435,120]
[394051636,1763231486670,500.0,0.00041435,120]
[394051637,1763231486906,500.0,0.00041435,120]
[394051638,1763231487357,500.0,0.00041435,120]
[394051639,1763231487403,765.22,0.00041435,120]
[394051640,1763231487463,633.08712912,0.00041435,120]
[394051641,1763231487508,765.22,0.00041435,120]
[394051642,1763231487685,765.22,0.00041435,120]
[394051643,1763231487754,529.55007229,0.00041435,120]
[394051644,1763231487799,500.0,0.00041435,120]
[394051645,1763231487918,765.22,0.00041435,120]
[394051646,1763231488003,500.0,0.00041435,120]
[394051647,1763231488195,765.22,0.00041435,120]
[394051648,1763231488448,765.22,0.00041435,120]
[394051649,1763231488493,217.89101198,0.00041435,120]
[394051650,1763231488693,500.0,0.00041435,120]
[394051651,1763231488739,765.22,0.00041435,120]
[394051652,1763231488954,765.22,0.00041435,120]
[394051653,1763231489006,500.0,0.00041435,120]
[394051654,1763231489199,500.0,0.00041435,120]
[394051655,1763231489243,765.22,0.00041435,120]
[394051656,1763231489384,500.0,0.00041435,120]
[394051657,1763231489467,765.22,0.00041435,120]
[394051658,1763231489532,500.0,0.00041435,120]
[394051659,1763231489585,347.65553273,0.00041435,120]
[394051660,1763231489629,500.0,0.00041435,120]
[394051661,1763231489692,765.22,0.00041435,120]
[394051662,1763231489751,500.0,0.00041435,120]
[394051663,1763231489859,500.0,0.00041435,120]
[394051664,1763231489945,765.22,0.00041435,120]
[394051665,1763231490014,500.0,0.00041435,120]
[394051666,1763231490117,500.0,0.00041435,120]
[394051667,1763231490178,765.22,0.00041435,120]
[394051668,1763231490241,500.0,0.00041435,120]
[394051669,1763231490286,500.0,0.00041435,120]
[394051670,1763231490346,500.0,0.00041435,120]
[394051671,1763231490428,765.22,0.00041435,120]
[394051672,1763231490484,500.0,0.00041435,120]
[394051673,1763231490528,500.0,0.00041435,120]
[394051674,1763231490588,500.0,0.00041435,120]
[394051675,1763231490648,765.22,0.00041435,120]
[394051676,1763231490729,500.0,0.00041435,120]
[394051677,1763231490773,210.03780448,0.00041435,120]
[394051678,1763231490853,500.0,0.00041435,120]
[394051679,1763231490908,765.22,0.00041435,120]
[394051680,1763231490964,500.0,0.00041435,120]
[394051681,1763231491104,500.0,0.00041435,120]
[394051682,1763231491155,765.22,0.00041435,120]
[394051683,1763231491206,500.0,0.00041435,120]
[394051684,1763231491352,500.0,0.00041435,120]
[394051685,1763231491407,765.22,0.00041435,120]
[394051686,1763231491461,500.0,0.00041435,120]
[394051687,1763231491602,500.0,0.00041435,120]
[394051688,1763231491653,765.22,0.00041435,120]
[394051689,1763231491709,500.0,0.00041435,120]
[394051690,1763231491832,500.0,0.00041435,120]
[394051691,1763231491881,765.22,0.00041435,120]
[394051692,1763231492034,500.0,0.00041435,120]
[394051693,1763231492082,500.0,0.00041435,120]
[394051694,1763231492272,500.0,0.00041435,120]
[394051695,1763231492335,765.22,0.00041435,120]
[394051696,1763231492382,500.0,0.00041435,120]
[394051697,1763231492515,500.0,0.00041435,120]
[394051698,1763231492567,500.0,0.00041435,120]
[394051699,1763231492613,500.0,0.00041435,120]
[394051700,1763231492684,765.22,0.00041435,120]
[394051701,1763231492758,500.0,0.00041435,120]
[394051702,1763231492802,500.0,0.00041435,120]
[394051703,1763231492851,500.0,0.00041435,120]
[394051704,1763231492895,500.0,0.00041435,120]
[394051705,1763231492955,765.22,0.00041435,120]
[394051706,1763231493007,500.0,0.00041435,120]
[394051707,1763231493052,500.0,0.00041435,120]
[394051708,1763231493111,500.0,0.00041435,120]
[394051709,1763231493157,500.0,0.00041435,120]
[394051710,1763231493203,765.2388491,0.00041435,120]
[394051711,1763231493263,200.0,0.00041435,120]
[394051712,1763231493311,500.0,0.00041435,120]
[394051713,1763231493357,232.03648341,0.00041435,120]
[394051714,1763231493596,620.58767503,0.00041435,120]
[394051715,1763231493651,500.0,0.00041435,120]
[394051716,1763231493745,500.0,0.00041435,120]
[394051717,1763231493984,500.0,0.00041435,120]
[394051718,1763231494234,262.10567381,0.00041435,120]
[394051719,1763231494962,500.0,0.00041435,120]
[394051720,1763231495008,500.0,0.00041435,120]
[394051721,1763231495214,316.01474541,0.00041435,120]
[394051722,1763231495335,308.9124609,0.00041435,120]
[394051723,1763231496149,500.0,0.00041435,120]
[394051724,1763231496330,378.49123687,0.00041435,120]
[394051725,1763231497037,475.03635917,0.00041435,120]
[394051726,1763231497253,500.0,0.00041435,120]
[394051727,1763231497520,500.0,0.00041435,120]
[394051728,1763231497767,563.26280128,0.00041435,120]
[394051729,1763231498250,500.0,0.00041435,120]
[394051730,1763231499134,347.63735379,0.00041435,120]
[394051731,1763231499576,500.0,0.00041435,120]
[394051732,1763231499824,500.0,0.00041435,120]
[394051733,1763231499912,500.0,0.00041435,120]
[394051734,1763231500103,233.82940928,0.00041435,120]
[394051735,1763231501416,500.0,0.00041435,120]
[394051736,1763231501522,500.0,0.00041435,120]
[394051737,1763231501803,500.0,0.00041435,120]
[394051738,1763231501857,500.0,0.00041435,120]
[394051739,1763231502037,500.0,0.00041435,120]
[394051740,1763231502096,500.0,0.00041435,120]
[394051741,1763231502273,425.89426748,0.00041435,120]
[394051742,1763231502373,500.0,0.00041435,120]
[394051743,1763231502610,369.9319167,0.00041435,120]
[394051744,1763231502732,500.0,0.00041435,120]
[394051745,1763231502957,502.75412166,0.00041435,120]
[394051746,1763231503002,500.0,0.00041435,120]
[394051747,1763231503227,612.7079221,0.00041435,120]
[394051748,1763231503426,500.0,0.00041435,120]
[394051749,1763231503678,500.0,0.00041435,120]
[394051750,1763231503925,219.99747207,0.00041435,120]
[394051751,1763231504086,500.0,0.00041435,120]
[394051752,1763231504341,500.0,0.00041435,120]
[394051753,1763231504609,500.0,0.00041435,120]
[394051754,1763231504855,425.11087996,0.00041435,120]
[394051755,1763231505067,500.0,0.00041435,120]
[394051756,1763231505341,500.0,0.00041435,120]
[394051757,1763231505577,500.0,0.00041435,120]
[394051758,1763231505824,500.0,0.00041435,120]
[394051759,1763231506077,500.0,0.00041435,120]
[394051760,1763231506600,500.0,0.00041435,120]
[394051761,1763231506654,500.0,0.00041435,120]
[394051762,1763231506788,500.0,0.00041435,120]
[394051763,1763231506843,500.0,0.00041435,120]
[394051764,1763231506914,374.94880584,0.00041435,120]
[394051765,1763231507027,500.0,0.00041435,120]
[394051766,1763231507073,500.0,0.00041435,120]
[394051767,1763231507942,453.31619754,0.00041435,120]
[394051768,1763231508227,500.0,0.00041435,120]
[394051769,1763231508588,500.0,0.00041435,120]
[394051770,1763231508838,609.68528755,0.00041435,120]
[394051771,1763231509293,422.5201564,0.00041435,120]
[394051772,1763231510228,441.62090264,0.00041435,120]
[394051773,1763231511705,500.0,0.00041435,120]
[394051774,1763231511953,500.0,0.00041435,120]
[394051775,1763231512192,644.33108055,0.00041435,120]
[394051776,1763231512670,500.0,0.00041435,120]
[394051777,1763231512718,500.0,0.00041435,120]
[394051778,1763231512909,500.0,0.00041435,120]
[394051779,1763231512960,500.0,0.00041435,120]
[394051780,1763231513154,500.0,0.00041435,120]
[394051781,1763231513206,500.0,0.00041435,120]
[394051782,1763231513403,500.0,0.00041435,120]
[394051783,1763231513448,223.53988799,0.00041435,120]
[394051784,1763231513662,500.0,0.00041435,120]
[394051785,1763231513712,500.0,0.00041435,120]
[394051786,1763231513890,394.95620286,0.00041435,120]
[394051787,1763231513936,290.75297906,0.00041435,120]
[394051788,1763231513986,500.0,0.00041435,120]
[394051789,1763231514034,500.0,0.00041435,120]
[394051790,1763231514113,500.0,0.00041435,120]
[394051791,1763231514169,500.0,0.00041435,120]
[394051792,1763231514277,363.04327091,0.00041435,120]
[394051793,1763231514373,500.0,0.00041435,120]
[394051794,1763231514416,620.31602734,0.00041435,120]
[394051795,1763231514730,614.18726456,0.00041435,120]
[394051796,1763231515235,171.87591166,0.00041435,120]
[394051797,1763231515724,500.0,0.00041435,120]
[394051798,1763231516015,500.0,0.00041435,120]
[394051799,1763231516242,500.0,0.00041435,120]
[394051800,1763231516329,500.0,0.00041435,120]
[394051801,1763231516472,500.0,0.00041435,120]
[394051802,1763231516772,224.82872039,0.00041435,120]
[394051803,1763231516849,500.0,0.00041435,120]
[394051804,1763231516996,500.0,0.00041435,120]
[394051805,1763231517088,500.0,0.00041435,120]
[394051806,1763231517135,632.07057434,0.00041435,120]
[394051807,1763231517248,500.0,0.00041435,120]
[394051808,1763231517307,231.64785422,0.00041435,120]
[394051809,1763231517350,500.0,0.00041435,120]
[394051810,1763231517523,349.08054756,0.00041435,120]
[394051811,1763231517572,500.0,0.00041435,120]
[394051812,1763231517777,488.22741718,0.00041435,120]
[394051813,1763231517825,240.43020638,0.00041435,120]
[394051814,1763231518085,500.0,0.00041435,120]
[394051815,1763231518358,164.59079324,0.00041435,120]
[394051816,1763231518588,500.0,0.00041435,120]
[394051817,1763231518839,500.0,0.00041435,120]
[394051818,1763231519114,615.63615079,0.00041435,120]
[394051819,1763231519733,500.0,0.00041435,120]
[394051820,1763231519991,500.0,0.00041435,120]
[394051821,1763231520227,301.14906305,0.00041435,120]
[394051822,1763231520688,405.9164418,0.00041435,120]
[394051823,1763231521076,500.0,0.00041435,120]
[394051824,1763231521531,500.0,0.00041435,120]
[394051825,1763231521579,500.0,0.00041435,120]
[394051826,1763231521828,548.38219492,0.00041435,120]
[394051827,1763231521946,500.0,0.00041435,120]
[394051828,1763231522192,512.28037449,0.00041435,120]
[394051829,1763231522301,500.0,0.00041435,120]
[394051830,1763231522537,490.29673672,0.00041435,120]
[394051831,1763231522882,500.0,0.00041435,120]
[394051832,1763231523115,500.0,0.00041435,120]
[394051833,1763231523161,500.0,0.00041435,120]
[394051834,1763231523353,552.07159582,0.00041435,120]
[394051835,1763231523508,500.0,0.00041435,120]
[394051836,1763231523730,328.3107526,0.00041435,120]
[394051837,1763231523777,500.0,0.00041435,120]
[394051838,1763231523867,500.0,0.00041435,120]
[394051839,1763231524024,500.0,0.00041435,120]
[394051840,1763231524125,627.8759605,0.00041435,120]
[394051841,1763231524219,500.0,0.00041435,120]
[394051842,1763231524284,627.92196741,0.00041435,120]
[394051843,1763231524461,500.0,0.00041435,120]
[394051844,1763231524713,643.48230701,0.00041435,120]
[394051845,1763231526458,464.14433146,0.00041435,120]
[394051846,1763231526602,500.0,0.00041435,120]
[394051847,1763231526736,500.0,0.00041435,120]
[394051848,1763231526998,306.9858238,0.00041435,120]
[394051849,1763231527062,500.0,0.00041435,120]
[394051850,1763231527247,500.0,0.00041435,120]
[394051851,1763231527483,500.0,0.00041435,120]
[394051852,1763231527711,451.44990924,0.00041435,120]
[394051853,1763231527849,500.0,0.00041435,120]
[394051854,1763231528083,500.0,0.00041435,120]
[394051855,1763231528341,600.0,0.00041435,120]
[394051856,1763231528618,244.75013697,0.00041435,120]
[394051857,1763231528870,500.0,0.00041435,120]
[394051858,1763231529126,500.0,0.00041435,120]
[394051859,1763231529375,214.87709581,0.00041435,120]
[394051860,1763231529979,500.0,0.00041435,120]
[394051861,1763231530221,500.0,0.00041435,120]
[394051862,1763231530277,500.0,0.00041435,120]
[394051863,1763231530396,500.0,0.00041435,120]
[394051864,1763231530441,500.0,0.00041435,120]
[394051865,1763231530486,500.0,0.00041435,120]
[394051866,1763231530543,335.45929254,0.00041435,120]
[394051867,1763231530631,278.13378643,0.00041435,120]
[394051868,1763231530678,500.0,0.00041435,120]
[394051869,1763231530725,500.0,0.00041435,120]
[394051870,1763231530899,500.0,0.00041435,120]
[394051871,1763231530947,500.0,0.00041435,120]
[394051872,1763231531123,451.68349885,0.00041435,120]
[394051873,1763231531209,500.0,0.00041435,120]
[394051874,1763231531342,500.0,0.00041435,120]
[394051875,1763231531459,500.0,0.00041435,120]
[394051876,1763231531521,500.0,0.00041435,120]
[394051877,1763231531573,500.0,0.00041435,120]
[394051878,1763231531695,500.0,0.00041435,120]
[394051879,1763231531775,500.0,0.00041435,120]
[394051880,1763231531822,423.70873088,0.00041435,120]
[394051881,1763231532191,249.78928042,0.00041435,120]
[394051882,1763231532340,500.0,0.00041435,120]
[394051883,1763231532495,500.0,0.00041435,120]
[394051884,1763231532629,507.57934542,0.00041435,120]
[394051885,1763231532748,500.0,0.00041435,120]
[394051886,1763231532965,500.0,0.00041435,120]
[394051887,1763231533019,500.0,0.00041435,120]
[394051888,1763231533068,500.0,0.00041435,120]
[394051889,1763231533224,155.0065922,0.00041435,120]
[394051890,1763231533268,500.0,0.00041435,120]
[394051891,1763231533500,500.0,0.00041435,120]
[394051892,1763231533559,209.9254956,0.00041435,120]
[394051893,1763231533616,500.0,0.00041435,120]
[394051894,1763231533744,599.45449398,0.00041435,120]
[394051895,1763231535103,500.0,0.00041435,120]
[394051896,1763231535337,500.0,0.00041435,120]
[394051897,1763231535414,500.0,0.00041435,30]
[394051898,1763231535594,500.0,0.00041435,120]
[394051899,1763231535636,500.0,0.00041435,30]
[394051900,1763231535679,500.0,0.00041435,120]
[394051901,1763231535826,582.20343088,0.00041435,120]
[394051902,1763231535875,500.0,0.00041435,30]
[394051903,1763231535941,500.0,0.00041435,120]
[394051904,1763231536111,500.0,0.00041435,30]
[394051905,1763231536189,500.0,0.00041435,120]
[394051906,1763231536231,612.77155235,0.00041435,120]
[394051907,1763231536343,159.21203892,0.00041435,30]
[394051908,1763231536453,500.0,0.00041435,120]
[394051909,1763231536703,206.20757633,0.00041435,120]
[394051910,1763231537200,500.0,0.00041435,120]
[394051911,1763231537267,500.0,0.00041435,120]
[394051912,1763231537329,407.79710362,0.00041435,120]
[394051913,1763231537530,240.53104573,0.00041435,120]
[394051914,1763231538075,500.0,0.00041435,120]
[394051915,1763231538301,500.0,0.00041435,120]
[394051916,1763231538556,500.0,0.00041435,120]
[394051917,1763231539710,548.24105038,0.00041435,120]
[394051918,1763231540132,349.058814,0.00041435,120]
[394051919,1763231540200,500.0,0.00041435,120]
[394051920,1763231540473,500.0,0.00041435,120]
[394051921,1763231541083,233.26657596,0.00041435,120]
[394051922,1763231542003,500.0,0.00041435,120]
[394051923,1763231542118,500.0,0.00041435,120]
[394051924,1763231542354,500.0,0.00041435,120]
[394051925,1763231542424,500.0,0.00041435,120]
[394051926,1763231542606,500.0,0.00041435,120]
[394051927,1763231542666,500.0,0.00041435,120]
[394051928,1763231542876,294.65725963,0.00041435,120]
[394051929,1763231542925,500.0,0.00041435,120]
[394051930,1763231542970,500.0,0.00041435,120]
[394051931,1763231543024,463.53584458,0.00041435,120]
[394051932,1763231543132,500.0,0.00041435,120]
[394051933,1763231543179,500.0,0.00041435,120]
[394051934,1763231543227,500.0,0.00041435,120]
[394051935,1763231543361,439.75969478,0.00041435,120]
[394051936,1763231543417,339.48360916,0.00041435,120]
[394051937,1763231543470,500.0,0.00041435,120]
[394051938,1763231543675,255.95226852,0.00041435,120]
[394051939,1763231543723,493.09935218,0.00041435,120]
[394051940,1763231544725,500.0,0.00041435,120]
[394051941,1763231544838,500.0,0.00041435,120]
[394051942,1763231544921,500.0,0.00041435,120]
[394051943,1763231544968,500.0,0.00041435,120]
[394051944,1763231545064,500.0,0.00041435,120]
[394051945,1763231545172,401.49824812,0.00041435,120]
[394051946,1763231545217,500.0,0.00041435,120]
[394051947,1763231545290,500.0,0.00041435,120]
[394051948,1763231545421,500.0,0.00041435,120]
[394051949,1763231545667,641.37826776,0.00041435,120]
[394051950,1763231545723,500.0,0.00041435,120]
[394051951,1763231545800,500.0,0.00041435,120]